Workbook

Sheet BM38.b
A1: Biểu mẫu số 38.b
A2: Tỉnh Vĩnh Long
A4: TỔNG HỢP TÌNH HÌNH THỰC HIỆN KẾ HOẠCH ĐẦU TƯ PHÁT TRIỂN NĂM 2019
A5: (Biểu mẫu kèm theo báo cáo số 2098 /BC-SKHĐT-TH ngày 10 tháng 10 năm 2019 của Sở Kế hoạch và Đầu tư tỉnh Vĩnh Long)
L6: Đơn vị: Triệu đồng
A7: STT | B7: Chương trình/ngành, lĩnh vực | C7: Kế hoạch năm 2019 | F7: Khối lượng thực hiện Kế hoạch năm 2019 tính từ 01/01 năm 2019 đến hết ngày cuối Qúy 3 ( ngày 24/9/2019) | I7: Giải ngân Kế hoạch năm 2019 tính từ 01/01 năm 2019 đến hết ngày cuối Qúy 3 (ngày 24/9/2019) | L7: Ước giải ngân kế hoạch năm 2019
C8: Tổng số | D8: Trong nước | E8: Nước ngoài | F8: Tổng số | G8: Trong nước | H8: Nước ngoài | I8: Tổng số | J8: Trong nước | K8: Nước ngoài | L8: Tổng số | M8: Trong nước | N8: Nước ngoài
A10: 1 | B10: 2 | C10: 3 | D10: 4 | E10: 5 | F10: 6 | G10: 7 | H10: 8 | I10: 9 | J10: 10 | K10: 11 | L10: 12 | M10: 13 | N10: 14
B11: TỔNG SỐ VỐN | C11: =SUM(C12,C54,C56,C58) -> 2,735,299 | D11: 2,632,279 | E11: 103,020 | F11: 1,099,221 | G11: 1,076,521 | H11: 22,700 | I11: 1,023,356 | J11: 1,000,344 | K11: 22,209 | L11: =SUM(L12,L54,L56,L58) -> 2,469,889 | M11: =SUM(M12,M54,M56,M58) -> 2,498,504 | N11: 71,385
A12: I | B12: Vốn ngân sách nhà nước | C12: =SUM(C13,C23) -> 2,285,999 | D12: 2,182,979 | E12: 103,020 | F12: 1,005,940 | G12: 983,240 | H12: 22,700 | I12: 938,278 | J12: 916,068 | K12: 22,209 | L12: 2,108,654 | M12: 2,137,269 | N12: 71,385
A13: 1 | B13: Cân đối ngân sách địa phương | C13: =SUM(D13:E13) -> 1,794,200 | D13: =SUM(D17:D18,D21:D22) -> 1,794,200 | E13: =SUM(E17:E18,E21) -> 0 | F13: 747,184 | G13: =SUM(G17:G18,G21:G22) -> 747,184 | H13: 0 | I13: 700,097 | J13: =SUM(J17:J18,J21:J22) -> 700,097 | K13: 0 | L13: 1,648,490 | M13: =SUM(M17:M18,M21:M22) -> 1,748,490 | N13: 0 | O13: =M13/D13 -> 0.9745234645
B14: Trong đó:
A15: - | B15: Chuẩn bị đầu tư | C15: =SUM(D15:E15) -> 13,100 | D15: 13,100 | F15: =SUM(G15:H15) -> 4,483 | G15: 4,483 | I15: =SUM(J15:K15) -> 3,589 | J15: 3,589 | L15: =SUM(M15:N15) -> 12,707 | M15: =D15*97/100 -> 12,707
A16: - | B16: Thực hiện dự án | C16: =SUM(D16:E16) -> 1,411,771 | D16: 1,411,771 | F16: =SUM(G16:H16) -> 592,747 | G16: 592,747 | I16: =SUM(J16:K16) -> 563,802 | J16: 563,802 | L16: =SUM(M16:N16) -> 1,369,418 | M16: =D16*97/100 -> 1,369,418
A17: a | B17: Vốn đầu tư trong cân đối theo tiêu chí, định mức | C17: =SUM(D17:E17) -> 401,000 | D17: 401,000 | F17: =SUM(G17:H17) -> 247,116 | G17: 247,116 | I17: =SUM(J17:K17) -> 230,198 | J17: 230,198 | L17: =M17 -> 392,980 | M17: 392,980 | O17: =M17/D17 -> 0.98
A18: b | B18: Đầu tư từ nguồn thu sử dụng đất | C18: =SUM(D18:E18) -> 85,000 | D18: 85,000 | F18: =SUM(G18:H18) -> 41,346 | G18: 41,346 | I18: =SUM(J18:K18) -> 31,576 | J18: 31,576 | L18: =SUM(M18:N18) -> 82,450 | M18: 82,450 | O18: =M18/D18 -> 0.97
B19: Trong đó:
B20: - Vốn điều lệ quỹ hỗ trợ phát triển sử dụng đất | C20: =SUM(D20:E20) -> 3,000 | D20: 3,000 | E20: 0 | F20: 0 | G20: 0 | H20: 0 | I20: 0 | J20: 0 | K20: 0 | L20: =SUM(M20:N20) -> 3,000 | M20: 3,000 | N20: 0 | O20: =M20/D20 -> 1
A21: c | B21: Đầu tư từ nguồn thu xổ số kiến thiết | C21: =SUM(D21:E21) -> 1,197,000 | D21: 1,197,000 | F21: =SUM(G21:H21) -> 458,722 | G21: 458,722 | I21: =SUM(J21:K21) -> 438,323 | J21: 438,323 | L21: =SUM(M21:N21) -> 1,173,060 | M21: 1,173,060 | O21: =M21/D21 -> 0.98
A22: d | B22: Bội chi ngân sách địa phương | C22: =SUM(D22:E22) -> 111,200 | D22: 111,200 | L22: 100,000 | M22: 100,000 | O22: =M22/D22 -> 0.8992805755
A23: 2 | B23: Ngân sách trung ương | C23: =SUM(D23:E23) -> 491,799 | D23: =SUM(D25:D25) -> 388,779 | E23: =SUM(E25:E25) -> 103,020 | F23: =SUM(G23:H23) -> 258,756 | G23: =SUM(G25:G25) -> 236,056 | H23: 22,700 | I23: =SUM(J23:K23) -> 238,181 | J23: =SUM(J25:J25) -> 215,971 | K23: 22,209 | L23: =SUM(M23:N23) -> 460,164 | M23: =SUM(M25:M25) -> 388,779 | N23: 71,385
B24: Trong đó:
A25: - | B25: Thực hiện dự án | C25: =SUM(C28,C35) -> 382,479 | D25: =SUM(D28,D35,D50,D53) -> 388,779 | E25: =SUM(E28,E35,E50,E53) -> 103,020 | F25: =SUM(F28,F35) -> 231,556 | G25: =SUM(G28,G35,G50,G53) -> 236,056 | H25: =SUM(H28,H35,H50,H53) -> 22,700 | I25: 211,508 | J25: =SUM(J28,J35,J50,J53) -> 215,971 | K25: =SUM(K28,K35,K50,K53) -> 22,209 | L25: =SUM(L28,L35) -> 382,479 | M25: =SUM(M28,M35,M50,M53) -> 388,779 | N25: =SUM(N28,N35,N50,N53) -> 71,385
A26: a | B26: Các chương trình mục tiêu Quốc gia | C26: =SUM(C29,C31) -> 99,899 | D26: =SUM(D29,D31) -> 99,899 | E26: 0 | F26: 79,566 | G26: 79,566 | H26: 0 | I26: 78,204 | J26: 78,204 | K26: 0 | L26: =SUM(L29,L31) -> 99,899 | M26: =SUM(M29,M31) -> 99,899
B27: Trong đó:
A28: - | B28: Thực hiện dự án | C28: =SUM(C30,C32) -> 99,899 | D28: =SUM(D30,D32) -> 99,899 | E28: 0 | F28: 79,566 | G28: 79,566 | H28: 0 | I28: 78,204 | J28: 78,204 | K28: 0 | L28: =SUM(L30,L32) -> 99,899 | M28: =SUM(M30,M32) -> 99,899
A29: (1) | B29: Chương trình mục tiêu quốc gia thực hiện xây dựng Nông thôn mới | C29: =SUM(D29:E29) -> 96,500 | D29: =SUM(D30:D30) -> 96,500 | F29: =SUM(G29:H29) -> 76,911 | G29: =SUM(G30:G30) -> 76,911 | I29: =SUM(J29:K29) -> 75,578 | J29: =SUM(J30:J30) -> 75,578 | L29: =SUM(M29:N29) -> 96,500 | M29: =SUM(M30:M30) -> 96,500
A30: - | B30: Thực hiện dự án | C30: =SUM(D30:E30) -> 96,500 | D30: 96,500 | F30: =SUM(G30:H30) -> 76,911 | G30: 76,911 | I30: =SUM(J30:K30) -> 75,578 | J30: 75,578 | L30: =SUM(M30:N30) -> 96,500 | M30: 96,500
A31: (2) | B31: Chương trình mục tiêu quốc gia giảm nghèo bền vững | C31: =SUM(C32:C32) -> 3,399 | D31: =SUM(D32:D32) -> 3,399 | E31: 0 | F31: =SUM(G31:H31) -> 2,655 | G31: =SUM(G32) -> 2,655 | H31: 0 | I31: =SUM(J31:K31) -> 2,626 | J31: =SUM(J32) -> 2,626 | K31: 0 | L31: =SUM(L32:L32) -> 3,399 | M31: =SUM(M32:M32) -> 3,399
A32: - | B32: Thực hiện dự án | C32: =SUM(D32:E32) -> 3,399 | D32: 3,399 | F32: =SUM(G32) -> 2,655 | G32: 2,655 | I32: =SUM(J32) -> 2,626 | J32: 2,626 | L32: =SUM(M32:N32) -> 3,399 | M32: 3,399
A33: b | B33: Các chương trình mục tiêu | C33: =SUM(C35:C35) -> 282,580 | D33: 282,580 | E33: 0 | F33: 151,990 | G33: 151,990 | H33: 0 | I33: 133,304 | J33: 133,304 | K33: 0 | L33: =SUM(L35:L35) -> 282,580 | M33: =SUM(M35:M35) -> 282,580
B34: Trong đó:
A35: - | B35: Thực hiện dự án | C35: =SUM(D35:E35) -> 282,580 | D35: =SUM(D36,D38,D40,D42,D44,D46) -> 282,580 | E35: =SUM(E37,E39,E43,E45,E47) -> 0 | F35: =SUM(G35:H35) -> 151,990 | G35: =SUM(G36,G38,G40,G42,G44,G46) -> 151,990 | H35: 0 | I35: =SUM(J35:K35) -> 133,304 | J35: =SUM(J36,J38,J40,J42,J44,J46) -> 133,304 | K35: 0 | L35: =SUM(M35:N35) -> 282,580 | M35: =SUM(M36,M38,M40,M42,M44,M46) -> 282,580
A36: (1) | B36: Chương trình mục tiêu phát triển kinh tế - xã hội các vùng | C36: =SUM(C37:C37) -> 178,580 | D36: 178,580 | E36: 0 | F36: 77,269 | G36: 77,269 | H36: 0 | I36: 61,739 | J36: 61,739 | K36: 0 | L36: 178,580 | M36: 178,580
A37: - | B37: Thực hiện dự án | C37: =SUM(D37:E37) -> 178,580 | D37: 178,580 | F37: =SUM(G37:H37) -> 77,269 | G37: 77,269 | I37: =SUM(J37:K37) -> 61,739 | J37: 61,739 | L37: =SUM(M37:N37) -> 178,580 | M37: 178,580
A38: (2) | B38: Chương trình mục tiêu phát triển kinh tế thủy sản bền vững | C38: =SUM(C39:C39) -> 30,000 | D38: 30,000 | E38: 0 | F38: 10,221 | G38: 10,221 | H38: 0 | I38: 7,474 | J38: 7,474 | K38: 0 | L38: 30,000 | M38: 30,000
A39: - | B39: Thực hiện dự án | C39: =SUM(D39:E39) -> 30,000 | D39: 30,000 | F39: =SUM(G39:H39) -> 10,221 | G39: 10,221 | I39: =SUM(J39:K39) -> 7,474 | J39: 7,474 | L39: =SUM(M39:N39) -> 30,000 | M39: 30,000
A40: (3) | B40: Chương trình mục tiêu đầu tư hạ tầng khu kinh tế ven biển, khu kinh tế cửa khẩu, khu công nghiệp, cụm công nghiệp, khu công nghệ cao, khu nông nghiệp ứng dụng công nghệ cao | C40: =SUM(C41:C41) -> 30,000 | D40: 30,000 | E40: 0 | F40: 30,000 | G40: 30,000 | H40: 0 | I40: 30,000 | J40: 30,000 | K40: 0 | L40: 30,000 | M40: 30,000
A41: - | B41: Thực hiện dự án | C41: =SUM(D41:E41) -> 30,000 | D41: 30,000 | F41: =SUM(G41:H41) -> 30,000 | G41: 30,000 | I41: =SUM(J41:K41) -> 30,000 | J41: 30,000 | L41: =SUM(M41:N41) -> 30,000 | M41: 30,000
A42: (3) | B42: Chương trình mục tiêu phát triển hệ thống trợ giúp xã hội | C42: 10,000 | D42: 10,000 | E42: 0 | F42: 6,500 | G42: 6,500 | H42: 0 | I42: 6,106 | J42: 6,106 | K42: 0 | L42: 10,000 | M42: 10,000
A43: - | B43: Thực hiện dự án | C43: =SUM(D43:E43) -> 10,000 | D43: 10,000 | F43: =SUM(G43:H43) -> 6,500 | G43: 6,500 | I43: =SUM(J43:K43) -> 6,106 | J43: 6,106 | L43: =SUM(M43:N43) -> 10,000 | M43: 10,000
A44: (4) | B44: Chương trình mục tiêu đầu tư phát triển hạ tầng du lịch | C44: 25,000 | D44: 25,000 | E44: 0 | F44: 25,000 | G44: 25,000 | H44: 0 | I44: 25,000 | J44: 25,000 | K44: 0 | L44: 25,000 | M44: 25,000
A45: - | B45: Thực hiện dự án | C45: =SUM(D45:E45) -> 25,000 | D45: 25,000 | F45: =SUM(G45:H45) -> 25,000 | G45: 25,000 | I45: =SUM(J45:K45) -> 25,000 | J45: 25,000 | L45: =SUM(M45:N45) -> 25,000 | M45: 25,000
A46: (5) | B46: Chương trình mục tiêu công nghệ thông tin | C46: =SUM(C47:C47) -> 9,000 | D46: 9,000 | E46: 0 | F46: 3,000 | G46: 3,000 | H46: 0 | I46: 2,985 | J46: 2,985 | K46: 0 | L46: 9,000 | M46: 9,000
A47: - | B47: Thực hiện dự án | C47: =SUM(D47:E47) -> 9,000 | D47: 9,000 | F47: =SUM(G47:H47) -> 3,000 | G47: 3,000 | I47: =SUM(J47:K47) -> 2,985 | J47: 2,985 | L47: =SUM(M47:N47) -> 9,000 | M47: 9,000
A48: c | B48: Trái phiếu Chính phủ | C48: =SUM(C50) -> 6,300 | D48: =SUM(D50) -> 6,300 | E48: 0 | F48: 4,500 | G48: 4,500 | H48: 0 | I48: 4,463 | J48: 4,463 | K48: 0 | L48: 6,300 | M48: 6,300 | N48: 0
B49: Trong đó:
B50: Thực hiện dự án | C50: =SUM(D50:E50) -> 6,300 | D50: 6,300 | F50: =SUM(G50:H50) -> 4,500 | G50: 4,500 | I50: =SUM(J50:K50) -> 4,463 | J50: 4,463 | L50: 6,300 | M50: 6,300
A51: d | B51: Vốn ODA | C51: =SUM(C53) -> 103,020 | D51: =SUM(D53) -> 0 | E51: 103,020 | F51: 22,700 | G51: 0 | H51: 22,700 | I51: 22,209 | J51: 0 | K51: 22,209 | L51: 71,385 | M51: 0 | N51: 71,385
B52: Trong đó:
B53: Thực hiện dự án | C53: =SUM(D53:E53) -> 103,020 | E53: 103,020 | F53: =SUM(G53:H53) -> 22,700 | H53: 22,700 | I53: =SUM(J53:K53) -> 22,209 | K53: 22,209 | L53: =SUM(M53:N53) -> 71,385 | N53: 71385
A54: II | B54: Nguồn do Đái phát thanh - Truyền hình Vĩnh Long nộp vào ngân sách nhà nước | C54: =SUM(C55) -> 261,300 | D54: =SUM(D55) -> 261,300 | E54: =SUM(E55) -> 0 | F54: =SUM(F55) -> 45,773 | G54: =SUM(G55) -> 45,773 | H54: 0 | I54: =SUM(I55) -> 45,365 | J54: 45,365 | K54: 0 | L54: 248,235 | M54: 248,235 | N54: 0 | O54: =C54+C56+C58 -> 449,300 | P54: =F54+F56+F58 -> 93,280 | Q54: =I54+I56+I58 -> 85,078 | R54: =L54+L56+L58 -> 361,235 | S54: =P54/O54 -> 20.76% | T54: =Q54/O54 -> 18.94% | U54: =R54/O54 -> 80.40%
B55: Thực hiện dự án | C55: =SUM(D55:E55) -> 261,300 | D55: 261,300 | E55: 0 | F55: =SUM(G55:H55) -> 45,773 | G55: 45,773 | I55: =J55 -> 45,365 | J55: 45,365 | L55: =M55 -> 248,235 | M55: =D55*95% -> 248,235
A56: III | B56: Nguồn thu tiền sử dụng đất hạ tầng khu hành chính và dân cư phường 9 | C56: =SUM(C57) -> 80,000 | D56: =SUM(D57) -> 80,000 | E56: 0 | F56: 20,619 | G56: 20,619 | H56: 0 | I56: =SUM(I57) -> 20,171 | J56: 20,171 | K56: 0 | L56: 5,000 | M56: 5,000
B57: Thực hiện dự án | C57: =SUM(D57:E57) -> 80,000 | D57: 80,000 | F57: =SUM(G57:H57) -> 20,619 | G57: 20,619 | I57: =SUM(J57:K57) -> 20,171 | J57: 20,171 | L57: =SUM(M57:N57) -> 5,000 | M57: 5,000
A58: IV | B58: Nguồn dự phòng xổ số kiến thiết năm 2018 | C58: =SUM(C59) -> 108,000 | D58: =SUM(D59) -> 108,000 | E58: 0 | F58: =SUM(F59) -> 26,888 | G58: 26,888 | I58: =SUM(I59) -> 19,542 | J58: 18,739 | L58: =SUM(L59) -> 108,000 | M58: =SUM(M59) -> 108,000
B59: Thực hiện dự án | C59: =SUM(D59) -> 108,000 | D59: 108,000 | E59: 0 | F59: =SUM(G59) -> 26,888 | G59: 26,888 | I59: =SUM(J59) -> 19,542 | J59: 19,542 | L59: =SUM(M59) -> 108,000 | M59: 108,000

Sheet PL03
A1: Phụ lục 3
A2: Tỉnh Vĩnh Long
A3: DANH MỤC CHƯƠNG TRÌNH, DỰ ÁN ODA, VỐN VAY ƯU ĐÃI DỰ KIẾN KÝ KẾT TRONG 6 THÁNG CUỐI NĂM 2021
A4: (Kèm theo Báo cáo số 1560/BC-SKHĐT-KT ngày 14/7/2021 của Sở Kế hoạch và Đầu tư)
A5: Đơn vị: Triệu USD
A6: TT | B6: Tên Chuong trình, dự án | C6: Thời gian bắt đầu - kết thúc | D6: Cơ quan chủ quản | E6: Nhà tài trợ | F6: Tổng vốn ODA và vốn vay ưu đãi | G6: Dự kiến ký kết trong 6 tháng cuối năm 2021
G8: Trong đó: | J8: Vốn đối ứng
G9: Vốn vay ODA | H9: Vay ưu đãi | I9: Viện trợ không hoàn lại
A10: I | B10: Lĩnh vực Y tế | F10: 12 | G10: =G11 -> 12 | H10: 0 | I10: 0 | J10: 1.23
A11: (1) | B11: Dự án Đầu tư trang thiết bị Bệnh viện đa khoa tỉnh Vĩnh Long sử dụng vốn vay ODA của Chính phủ Áo | C11: 2019-2022 | D11: Ủy ban nhân dân tỉnh Vĩnh Long | E11: Chính phủ Áo | F11: 12 triệu EUR | G11: 12.0 | J11: 1.23
A12: II | B12: Lĩnh vực Phát triển đô thị | F12: =F13 -> 146.4 | G12: 126.9 | H12: 0 | I12: 19.5 | J12: 55.8
A13: (1) | B13: Dự án Phát triển đô thị và tăng cường khả năng thích ứng biến đổi khí hậu thành phố Vĩnh Long, tỉnh Vĩnh Long | C13: 2021-2025 | D13: Ủy ban nhân dân tỉnh Vĩnh Long | E13: WB | F13: =SUM(G13:I13) -> 146.4 | G13: 126.9 | I13: 19.5 | J13: 55.8

Sheet PL02
A1: Phụ lục 2
A2: Tỉnh Vĩnh Long
A3: BÁO CÁO GIẢI NGÂN CÁC CHƯƠNG TRÌNH, DỰ ÁN VỐN ODA VÀ VỐN VAY ƯU ĐÃI 6 THÁNG ĐẦU NĂM 2021
A4: (Kèm theo Báo cáo số 1560/BC-SKHĐT-KT ngày 14/7/2021 của Sở Kế hoạch và Đầu tư)
A5: Đơn vị tính: triệu đồng.
A6: Tên Chuong trình, dự án | B6: Nhà tài trợ | C6: Thời gian bắt đầu - kết thúc | D6: Tổng vốn đầu tư | E6: Tổng vốn ODA và vốn vay ưu đãi | F6: Trong đó | I6: Vốn đối ứng | J6: Lũy kế giải ngân vốn ODA, vay ưu đãi từ đầu dự án đến hết ngày 30/6/2021 | O6: Lũy kế giải ngân từ đầu năm đến thời điểm báo cáo | T6: Lũy kế giải ngân vốn đối ứng từ đầu dự án đến hết ngày 30/6/2021 | W6: Lũy kế giải ngân vốn đối ứng từ ngày 01/01/2021 đến hết ngày 30/6/2021
J8: Tổng số | K8: Trong đó: | O8: Tổng số | P8: Trong đó: | T8: Tổng số | U8: Trong đó: | W8: Tổng số | X8: Trong đó:
F9: Vốn vay ODA | G9: Vay ưu đãi | H9: Viện trợ không hoàn lại | K9: XDCB | L9: HCSN | M9: CVL | N9: HTNS | P9: XDCB | Q9: HCSN | R9: CVL | S9: HTNS | U9: NSTW | V9: NSĐP | X9: NSTW | Y9: NSĐP
A10: 1 | B10: 2 | C10: 3 | D10: 4 | E10: 5 | F10: 6 | G10: 7 | H10: 8 | I10: 9 | J10: 10 | K10: 11 | L10: 12 | M10: 13 | N10: 14 | O10: 15 | P10: 16 | Q10: 17 | R10: 18 | S10: 19 | T10: 20 | U10: 21 | V10: 22 | W10: 23 | X10: 24 | Y10: 25
A11: TỔNG SỐ | D11: =D12+D14+D16 -> 1,585,271 | E11: =E12+E14+E16 -> 1,103,989 | F11: 1,103,989 | G11: 0 | H11: 0 | I11: 481,282 | J11: 33,170 | K11: 33,170 | L11: 0 | M11: 0 | N11: 0 | O11: 17,872 | P11: 17,872 | Q11: 0 | R11: 0 | S11: 0 | T11: 239,208 | U11: 0 | V11: 239,208 | W11: 6,560 | X11: 0 | Y11: 6,560
A12: Lĩnh vực Y tế | D12: =D13 -> 310,759 | E12: =E13 -> 282,156 | F12: =F13 -> 282,156 | G12: =G13 -> 0 | H12: =H13 -> 0 | I12: =I13 -> 28,603 | J12: =J13 -> 0 | K12: =K13 -> 0 | L12: =L13 -> 0 | M12: =M13 -> 0 | N12: =N13 -> 0 | O12: =O13 -> 0 | P12: =P13 -> 0 | Q12: =Q13 -> 0 | R12: =R13 -> 0 | S12: =S13 -> 0 | T12: =T13 -> 3,600 | U12: =U13 -> 0 | V12: =V13 -> 3,600 | W12: =W13 -> 3,600 | X12: =X13 -> 0 | Y12: =Y13 -> 3,600
A13: Dự án Đầu tư trang thiết bị Bệnh viện đa khoa tỉnh Vĩnh Long sử dụng vốn vay ODA của Chính phủ Áo | B13: Chính phủ Áo | C13: 2019-2022 | D13: =E13+I13 -> 310,759 | E13: =SUM(F13:H13) -> 282,156 | F13: 282,156 | I13: 28,603 | J13: =SUM(K13:N13) -> 0 | K13: 0 | O13: =SUM(P13:S13) -> 0 | P13: 0 | T13: =SUM(U13:V13) -> 3,600 | V13: 3,600 | W13: =SUM(X13:Y13) -> 3,600 | Y13: 3,600
A14: Lĩnh vực quản lý đất đai | D14: =D15 -> 28,620 | E14: =E15 -> 23,833 | F14: =F15 -> 23,833 | G14: =G15 -> 0 | H14: =H15 -> 0 | I14: =I15 -> 4,787 | J14: =J15 -> 0 | K14: =K15 -> 0 | L14: =L15 -> 0 | M14: =M15 -> 0 | N14: =N15 -> 0 | O14: =O15 -> 0 | P14: =P15 -> 0 | Q14: =Q15 -> 0 | R14: =R15 -> 0 | S14: =S15 -> 0 | T14: =T15 -> 274 | U14: =U15 -> 0 | V14: =V15 -> 274 | W14: =W15 -> 274 | X14: =X15 -> 0 | Y14: =Y15 -> 274
A15: Dự án Tăng cường quản lý đất đai và cơ sở dữ liệu đất đai | B15: WB | C15: 2018-2022 | D15: =E15+I15 -> 28,620 | E15: =SUM(F15:H15) -> 23,833 | F15: 23,833 | I15: 4,787 | J15: =SUM(K15:N15) -> 0 | K15: 0 | O15: =SUM(P15:S15) -> 0 | P15: 0 | T15: =SUM(U15:V15) -> 274 | V15: 274 | W15: =SUM(X15:Y15) -> 274 | Y15: 274
A16: Lĩnh vực Phát triển đô thị | D16: =D17 -> 1,245,892 | E16: =E17 -> 798,000 | F16: 798,000 | G16: 0 | H16: 0 | I16: 447,892 | J16: 33,170 | K16: 33,170 | L16: 0 | M16: 0 | N16: 0 | O16: 17,872 | P16: 17,872 | Q16: 0 | R16: 0 | S16: 0 | T16: 235,334 | U16: 0 | V16: 235,334 | W16: 2,686 | X16: 0 | Y16: 2,686
A17: Dự án mở rộng nâng cấp đô thị Việt Nam, tiểu dư án thành phố Vĩnh Long | B17: WB | C17: 2019-2024 | D17: =E17+I17 -> 1,245,892 | E17: =SUM(F17:H17) -> 798,000 | F17: 798,000 | I17: 447,892 | J17: =SUM(K17:N17) -> 33,170 | K17: =15298+17872 -> 33,170 | O17: =SUM(P17:S17) -> 17,872 | P17: 17,872 | T17: =SUM(U17:V17) -> 235,334 | V17: =232648+2686 -> 235,334 | W17: =SUM(X17:Y17) -> 2,686 | Y17: 2,686
